{"text_format":"2","workbook":"xlsx","n_sheets":1,"sheets":["Lista de Precios "],"not_rendered":{"charts":0,"images":1,"macros":0,"external_links":0,"defined_names":0,"comments":0,"pivot_tables":0},"unopened":[],"bounds":{"document_bytes":16777216,"sheet_cells":100000,"run_cost":"one","rows_first":2000,"rows_last":500,"rows_between":2000,"halvings":0,"cell_chars":16384,"cell_head_chars":4096},"cells_cut":0,"cells_raw":0,"read":"whole","date_system":"1900"}

{"sheet":"Lista de Precios ","index":0,"n_rows":65,"n_cols":8,"rows_kept":65,"cut":false,"hidden":false,"merged":[[2,6,3,6],[2,7,3,7],[0,0,3,0],[2,1,3,1],[2,2,3,2],[2,3,3,3],[2,5,3,5]]}
[]
[]
[null,"MENUDEO","MAYOREO + $2,000","37 % DESCUENTO",null,"PRODUCTO","MENUDEO","37% DESCUENTO"]
[]
["BRILLO LABIAL ",52,"38.00 ",{"$f":"B5-(B5*37%)","v":32.760000000000005},null,"SACAPUNTAS TINTALINE ",32,{"$f":"G5-(G5*37%)","v":20.16}]
["DELINEADOR RETRÁCTIL LABIOS -OJOS",40,null,25.2,null,"SACAPUNTAS DUO ",45,28.35]
["LABIAL HUMECTANTE ",41,null,25.83,null,"KIT 24 ESPONJAS PIQUITOS ",136,85.68]
["LABIAL MATE ",49,null,30.87,null,"ESPONJAS INDIVIDUALES ",48,30.240000000000002]
["LABIAL MAGICO",41,null,25.83,null,"BROCHA PROFESIONAL No. 2 ",134,"N/A"]
["TINTAS PARA LABIOS Y MEJILLAS ",71,"MAYOREO",51.12,0.28000000000000003,"BROCHA PROFESIONAL No. 3 ",81,"N/A"]
["TINTA MATE ",100,null,63,null,"BROCHA PROFESIONAL No. 4 ",137,"N/A"]
["TINTALINE LABIOS -OJOS",69,null,43.47,null,"BROCHA PROFESIONAL No. 5 ",431,"N/A"]
["DELINEADOR LÍQUIDO ",69,null,43.47,null,"BROCHA PROFESIONAL No. 6 ",208,"N/A"]
["LÁPIZ PARA CEJAS ",102,null,{"$f":"B14-(B14*37%)","v":64.259999999999991},null,"BROCHA PROFESIONAL No. 7 ",155,"N/A"]
["LÁPIZ PARA CEJAS ULTRA FINO",55,null,{"$f":"B15-(B15*37%)","v":34.65},null,"BROCHA PROFESIONAL No. 8 ",231,"N/A"]
["MASCARA DE PESTAÑAS EXPLOSIVE LOOK ",89,null,56.07,null,"BROCHA PROFESIONAL No. 9 ",180,"N/A"]
["PLUMIN DELINEADOR ",80,null,50.4,null,"BROCHA PROFESIONAL No. 12 ",67,"N/A"]
["PLUMIN DELINEADOR MATE ",80,null,50.4,null,"BROCHA PROFESIONAL No. 13 ",70,"N/A"]
["PLUMIN DELINEADOR PARA CEJAS ",80,null,50.4,null,"BROCHA PROFESIONAL No. 19 ",63,"N/A"]
["PRIMER PARA ROSTROS ",177,null,111.51,null,"BROCHA PROFESIONAL No. 21 ",70,"N/A"]
["PRIMER PARA OJOS ",51,null,32.129999999999995,null,"BROCHA PROFESIONAL No. 22 ",68,"N/A"]
["SOMBRA EN POLVO ",23,null,14.49,null,"BROCHA PROFESIONAL No. 23 ",62,"N/A"]
["SOMBRA INDIVIDUAL ",48,null,30.240000000000002,null,"BROCHA PROFESIONAL No. 25 ",87,"N/A"]
["SOMBRA QUINTETO ",65,null,40.950000000000003,null,"BROCHA PROFESIONAL No. 26 ",68,"N/A"]
["SOMBRA PARA CEJAS ",46,null,28.98,null,"BROCHA PROFESIONAL No. 27 ",97,"N/A"]
["BRONCEADOR ",54,null,34.019999999999996]
["ILUMINADOR ",60,null,37.799999999999997]
["CONTORNEADOR 6 COLORES ",125,null,78.75]
["PALETA PARA ROSTRO",125,null,78.75]
["CORRECTOR LIQUIDO",64,null,40.32]
["CORRECTOR ",31,null,19.53]
["GLITTER ",25,null,15.75]
["PALETA MAQUILLAJE ESTADOS Y OCASIONES ",173,null,108.99]
["MAQUILLAJE COMPACTO ",107,null,67.41]
["MAQUILLAJE LÍQUIDO ",152,null,95.759999999999991]
["POLVO FIJADOR ",101,null,63.63]
["POLVO TRASLÚCIDO ",101,null,63.63]
["RUBOR ",54,null,34.019999999999996]
["ESMALTE 15 ML. ",37,null,23.310000000000002]
["ESMALTE MINI ",19,null,11.969999999999999]
["LIMA DE 3 PASOS ",25,null,15.75]
["LIMA NEGRA ",19,null,11.969999999999999]
["MINI LIMA NEGRA ",15,null,9.4499999999999993]
["KIT ILUMINADORES Y BRONCEADORES (16 PZS) ** ",400,"---- "]
["CASACA PARA DEMOSTRADORA ",355,"--- "]
["PROBADOR CONTOR,BRONCEAD,ILUMINADOR ",1144]
["PROBADOR LABIAL HUMECTANTE",735]
["PROBADOR LABIAL MATE ",735,"--- "]
["PROBADOR LABIAL MATE Y HUMECTANTE",1061,"--- "]
["PROBADOR MAQUILLAJE COMPACTO ",843,"--- "]
["PROBADOR QUINTETO ",1856]
["PROBADOR RUBOR ",1664,"--- "]
["PROBADOR SOMBRAS CEJAS",428,"--- "]
["PROBADOR SOMBRA INDIVIDUAL ",1856,"--- "]
["EXHIBIDOR NEGOCIOS CON 327 PRODUCTOS ",14000]
["EXHIBIDOR NEGOCIOS SIN PRODUCTO",2208]
["EXHIBIDOR TINTALINE ",1759]
["BROCHAS ECOLOGICAS ",355]
["BOLSAS ECOLOGICAS GRANDE ",47]
["BOLSAS ECOLOGICAS MEDIANA ",35]
["CATALOGO ",25]
["PROBADOR PALETAS PARA ROSTRO ",820]
["EXHIBIDOR GIRATORIO",2782]
["PROBADOR PALETAS DE ROSTRO",723]
["Lista de precios sujeta a cambios sin previo aviso. "]